[Event "Titled Tuesday Blitz February 07 Early 2023"]
[White "Galchenko, Matvey"]
[Black "Korobov, Anton"]
[WhiteFideId "24175480"]
[BlackFideId "14105730"]
[WhiteElo "2438"]
[BlackElo "2664"]
[Result "0-1"]
[Round "09"]
[TimeControl "180+2"]
[Date "2023.02.07"]
[WhiteClock "0:00:04"]
[BlackClock "0:00:20"]

1. f4 {[%clk 0:03:00]}  d5 {[%clk 0:02:57]} 2. Nf3 {[%clk 0:02:59]}  c5 {[%clk 0:02:54]} 3. g3 {[%clk 0:03:00]}  Nc6 {[%clk 0:02:54]} 4. Bg2 {[%clk 0:03:01]}  g6 {[%clk 0:02:52]} 5. O-O {[%clk 0:03:01]}  Bg7 {[%clk 0:02:53]} 6. d3 {[%clk 0:03:02]}  Nf6 {[%clk 0:02:53]} 7. Nc3 {[%clk 0:03:02]}  d4 {[%clk 0:02:52]} 8. Na4 {[%clk 0:03:02]}  Nd7 {[%clk 0:02:50]} 9. c4 {[%clk 0:03:01]}  O-O {[%clk 0:02:48]} 10. a3 {[%clk 0:03:01]}  Qc7 {[%clk 0:02:38]} 11. Rb1 {[%clk 0:02:59]}  a5 {[%clk 0:02:38]} 12. e4 {[%clk 0:02:59]}  dxe3 {[%clk 0:02:36]} 13. Bxe3 {[%clk 0:02:59]}  b6 {[%clk 0:02:26]} 14. Nc3 {[%clk 0:02:59]}  Bb7 {[%clk 0:02:18]} 15. Qe2 {[%clk 0:02:59]}  Rad8 {[%clk 0:02:13]} 16. Rbd1 {[%clk 0:02:26]}  e6 {[%clk 0:02:09]} 17. Nb5 {[%clk 0:02:21]}  Qb8 {[%clk 0:02:08]} 18. d4 {[%clk 0:01:51]}  cxd4 {[%clk 0:02:04]} 19. Nbxd4 {[%clk 0:01:51]}  Nxd4 {[%clk 0:02:02]} 20. Nxd4 {[%clk 0:01:51]}  Nc5 {[%clk 0:01:53]} 21. b4 {[%clk 0:01:40]}  axb4 {[%clk 0:01:42]} 22. axb4 {[%clk 0:01:41]}  Ne4 {[%clk 0:01:30]} 23. Qc2 {[%clk 0:01:40]}  Nd6 {[%clk 0:01:19]} 24. Bxb7 {[%clk 0:01:09]}  Qxb7 {[%clk 0:01:17]} 25. c5 {[%clk 0:01:09]}  bxc5 {[%clk 0:01:12]} 26. bxc5 {[%clk 0:01:10]}  Rc8 {[%clk 0:00:53]} 27. Qa2 {[%clk 0:00:16]}  Qe4 {[%clk 0:00:37]} 28. Rfe1 {[%clk 0:00:14]}  Rxc5 {[%clk 0:00:34]} 29. Qa3 {[%clk 0:00:08]}  Rd5 {[%clk 0:00:25]} 30. Qb4 {[%clk 0:00:02]}  Nf5 {[%clk 0:00:23]} 31. Nc6 {[%clk 0:00:01]}  Qxb4 {[%clk 0:00:22]} 32. Nxb4 {[%clk 0:00:02]}  Rxd1 {[%clk 0:00:22]} 33. Rxd1 {[%clk 0:00:03]}  Nxe3 {[%clk 0:00:22]} 34. Rd7 {[%clk 0:00:04]}  Nd5 {[%clk 0:00:22]} 35. Nc6 {[%clk 0:00:04]}  Rc8 {[%clk 0:00:21]} 36. Rxd5 {[%clk 0:00:03]}  Rxc6 {[%clk 0:00:20]} 37. Rd8+ {[%clk 0:00:04]}  Bf8 {[%clk 0:00:20]} 0-1


[Site "https://www.chess.com"]

[Event "Titled Tuesday Blitz February 07 Early 2023"]
[White "Zierk, Steven"]
[Black "Guseinov, Gadir"]
[WhiteFideId "2034255"]
[BlackFideId "13401378"]
[WhiteElo "2488"]
[BlackElo "2661"]
[Result "0-1"]
[Round "09"]
[TimeControl "180+2"]
[Date "2023.02.07"]
[WhiteClock "0:00:06"]
[BlackClock "0:00:28"]

1. e4 {[%clk 0:03:00]}  c5 {[%clk 0:02:59]} 2. Nf3 {[%clk 0:03:00]}  g6 {[%clk 0:02:58]} 3. d4 {[%clk 0:03:00]}  cxd4 {[%clk 0:02:58]} 4. Nxd4 {[%clk 0:03:01]}  Nc6 {[%clk 0:02:58]} 5. c4 {[%clk 0:03:00]}  Nf6 {[%clk 0:02:58]} 6. Nc3 {[%clk 0:03:00]}  Nxd4 {[%clk 0:02:58]} 7. Qxd4 {[%clk 0:02:59]}  d6 {[%clk 0:02:58]} 8. Be3 {[%clk 0:02:57]}  Bg7 {[%clk 0:02:54]} 9. f3 {[%clk 0:02:55]}  O-O {[%clk 0:02:48]} 10. Qd2 {[%clk 0:02:55]}  Be6 {[%clk 0:02:47]} 11. Rc1 {[%clk 0:02:54]}  Qa5 {[%clk 0:02:46]} 12. b3 {[%clk 0:02:49]}  Rfc8 {[%clk 0:02:45]} 13. Be2 {[%clk 0:02:45]}  a6 {[%clk 0:02:45]} 14. Nd5 {[%clk 0:02:42]}  Qxd2+ {[%clk 0:02:45]} 15. Kxd2 {[%clk 0:02:43]}  Nxd5 {[%clk 0:02:44]} 16. exd5 {[%clk 0:02:36]}  Bd7 {[%clk 0:02:43]} 17. b4 {[%clk 0:02:13]}  a5 {[%clk 0:02:30]} 18. b5 {[%clk 0:02:13]}  Bb2 {[%clk 0:02:30]} 19. Rb1 {[%clk 0:02:08]}  Ba3 {[%clk 0:02:30]} 20. b6 {[%clk 0:01:50]}  Bb4+ {[%clk 0:02:25]} 21. Kc2 {[%clk 0:01:44]}  Bf5+ {[%clk 0:02:20]} 22. Kb3 {[%clk 0:01:38]}  Bxb1 {[%clk 0:02:20]} 23. Rxb1 {[%clk 0:01:39]}  Bc5 {[%clk 0:02:20]} 24. Bxc5 {[%clk 0:01:39]}  Rxc5 {[%clk 0:02:18]} 25. Bd3 {[%clk 0:01:37]}  Kf8 {[%clk 0:01:54]} 26. h4 {[%clk 0:01:36]}  Ke8 {[%clk 0:01:42]} 27. h5 {[%clk 0:01:33]}  gxh5 {[%clk 0:01:35]} 28. Rh1 {[%clk 0:01:28]}  Ra6 {[%clk 0:01:31]} 29. Rxh5 {[%clk 0:01:29]}  Rxb6+ {[%clk 0:01:31]} 30. Kc3 {[%clk 0:01:29]}  e6 {[%clk 0:01:17]} 31. Kd4 {[%clk 0:00:53]}  exd5 {[%clk 0:01:16]} 32. cxd5 {[%clk 0:00:52]}  Rb4+ {[%clk 0:01:16]} 33. Ke3 {[%clk 0:00:51]}  Ra4 {[%clk 0:01:14]} 34. Rxh7 {[%clk 0:00:48]}  Rxa2 {[%clk 0:01:10]} 35. g4 {[%clk 0:00:45]}  a4 {[%clk 0:01:07]} 36. g5 {[%clk 0:00:42]}  Rg2 {[%clk 0:01:04]} 37. Rh8+ {[%clk 0:00:39]}  Ke7 {[%clk 0:01:04]} 38. f4 {[%clk 0:00:38]}  a3 {[%clk 0:00:58]} 39. Ra8 {[%clk 0:00:35]}  a2 {[%clk 0:00:56]} 40. f5 {[%clk 0:00:35]}  Rxg5 {[%clk 0:00:52]} 41. Rxa2 {[%clk 0:00:34]}  Rg3+ {[%clk 0:00:50]} 42. Kd4 {[%clk 0:00:34]}  Rg4+ {[%clk 0:00:50]} 43. Ke3 {[%clk 0:00:31]}  Rxd5 {[%clk 0:00:49]} 44. Be2 {[%clk 0:00:30]}  Re5+ {[%clk 0:00:48]} 45. Kf3 {[%clk 0:00:26]}  Rge4 {[%clk 0:00:47]} 46. Bf1 {[%clk 0:00:15]}  d5 {[%clk 0:00:45]} 47. Bd3 {[%clk 0:00:09]}  Rd4 {[%clk 0:00:32]} 48. Bc2 {[%clk 0:00:09]}  Rc4 {[%clk 0:00:30]} 49. Rb2 {[%clk 0:00:08]}  b5 {[%clk 0:00:30]} 50. Bb3 {[%clk 0:00:06]}  Rb4 {[%clk 0:00:28]} 0-1


[Site "https://www.chess.com"]

[Event "Titled Tuesday Blitz February 07 Early 2023"]
[White "Yuan, Qingyu"]
[Black "Keymer, Vincent"]
[WhiteFideId "8609772"]
[BlackFideId "12940690"]
[WhiteElo "2373"]
[BlackElo "2700"]
[Result "0-1"]
[Round "09"]
[TimeControl "180+2"]
[Date "2023.02.07"]
[WhiteClock "0:00:03"]
[BlackClock "0:00:06"]

1. e4 {[%clk 0:03:00]}  c6 {[%clk 0:02:56]} 2. d4 {[%clk 0:03:01]}  d5 {[%clk 0:02:57]} 3. exd5 {[%clk 0:03:02]}  cxd5 {[%clk 0:02:58]} 4. Bd3 {[%clk 0:03:02]}  Nf6 {[%clk 0:02:56]} 5. h3 {[%clk 0:03:03]}  Nc6 {[%clk 0:02:56]} 6. c3 {[%clk 0:03:03]}  e5 {[%clk 0:02:56]} 7. dxe5 {[%clk 0:03:04]}  Nxe5 {[%clk 0:02:57]} 8. Nf3 {[%clk 0:03:05]}  Nxd3+ {[%clk 0:02:57]} 9. Qxd3 {[%clk 0:03:06]}  Bd6 {[%clk 0:02:57]} 10. O-O {[%clk 0:03:06]}  O-O {[%clk 0:02:58]} 11. Be3 {[%clk 0:03:06]}  Re8 {[%clk 0:02:51]} 12. Nbd2 {[%clk 0:03:04]}  Ne4 {[%clk 0:02:50]} 13. Rad1 {[%clk 0:02:46]}  Bf5 {[%clk 0:02:36]} 14. Qb5 {[%clk 0:02:19]}  Re7 {[%clk 0:01:33]} 15. Nxe4 {[%clk 0:01:52]}  Bxe4 {[%clk 0:01:33]} 16. Ng5 {[%clk 0:01:36]}  a6 {[%clk 0:01:07]} 17. Qb3 {[%clk 0:01:21]}  Qc7 {[%clk 0:01:05]} 18. Nxe4 {[%clk 0:01:15]}  dxe4 {[%clk 0:01:06]} 19. Rd5 {[%clk 0:01:12]}  Bh2+ {[%clk 0:00:41]} 20. Kh1 {[%clk 0:01:12]}  Bf4 {[%clk 0:00:41]} 21. Bb6 {[%clk 0:01:04]}  Qc6 {[%clk 0:00:38]} 22. Rfd1 {[%clk 0:01:03]}  Rae8 {[%clk 0:00:38]} 23. Bc5 {[%clk 0:00:32]}  Re6 {[%clk 0:00:37]} 24. Qb4 {[%clk 0:00:28]}  h6 {[%clk 0:00:28]} 25. Be3 {[%clk 0:00:27]}  Bxe3 {[%clk 0:00:22]} 26. fxe3 {[%clk 0:00:28]}  b5 {[%clk 0:00:19]} 27. Qd4 {[%clk 0:00:26]}  Qc7 {[%clk 0:00:15]} 28. Rf1 {[%clk 0:00:24]}  R8e7 {[%clk 0:00:09]} 29. Rd8+ {[%clk 0:00:23]}  Kh7 {[%clk 0:00:09]} 30. Qd5 {[%clk 0:00:24]}  Qg3 {[%clk 0:00:08]} 31. Qf5+ {[%clk 0:00:17]}  Rg6 {[%clk 0:00:07]} 32. Qf2 {[%clk 0:00:12]}  Qg5 {[%clk 0:00:06]} 33. Ra8 {[%clk 0:00:11]}  Ree6 {[%clk 0:00:06]} 34. Qe2 {[%clk 0:00:11]}  Ref6 {[%clk 0:00:05]} 35. Rxf6 {[%clk 0:00:09]}  Rxf6 {[%clk 0:00:06]} 36. Kh2 {[%clk 0:00:05]}  Rd6 {[%clk 0:00:04]} 37. Re8 {[%clk 0:00:04]}  Qg6 {[%clk 0:00:02]} 38. Qf2 {[%clk 0:00:04]}  Re6 {[%clk 0:00:03]} 39. Rxe6 {[%clk 0:00:04]}  Qxe6 {[%clk 0:00:04]} 40. Qf4 {[%clk 0:00:04]}  f5 {[%clk 0:00:04]} 41. b3 {[%clk 0:00:04]}  g5 {[%clk 0:00:03]} 42. Qc7+ {[%clk 0:00:04]}  Kg6 {[%clk 0:00:04]} 43. c4 {[%clk 0:00:04]}  bxc4 {[%clk 0:00:04]} 44. bxc4 {[%clk 0:00:05]}  Kf6 {[%clk 0:00:03]} 45. Qd8+ {[%clk 0:00:05]}  Qe7 {[%clk 0:00:03]} 46. Qd4+ {[%clk 0:00:05]}  Qe5+ {[%clk 0:00:03]} 47. Kg1 {[%clk 0:00:05]}  f4 {[%clk 0:00:03]} 48. Kf2 {[%clk 0:00:05]}  Ke6 {[%clk 0:00:02]} 49. Qb6+ {[%clk 0:00:04]}  Qd6 {[%clk 0:00:03]} 50. Qb2 {[%clk 0:00:02]}  fxe3+ {[%clk 0:00:02]} 51. Kxe3 {[%clk 0:00:02]}  Qd3+ {[%clk 0:00:02]} 52. Kf2 {[%clk 0:00:03]}  Qxc4 {[%clk 0:00:03]} 53. Qb7 {[%clk 0:00:02]}  Qd4+ {[%clk 0:00:02]} 54. Kg3 {[%clk 0:00:01]}  Qe5+ {[%clk 0:00:02]} 55. Kf2 {[%clk 0:00:01]}  Qf6+ {[%clk 0:00:02]} 56. Ke2 {[%clk 0:00:01]}  Kf5 {[%clk 0:00:03]} 57. Qd5+ {[%clk 0:00:02]}  Qe5 {[%clk 0:00:03]} 58. Qf7+ {[%clk 0:00:02]}  Qf6 {[%clk 0:00:04]} 59. Qd5+ {[%clk 0:00:02]}  Kf4 {[%clk 0:00:04]} 60. Qd2+ {[%clk 0:00:02]}  Kg3 {[%clk 0:00:05]} 61. Qe3+ {[%clk 0:00:02]}  Kxg2 {[%clk 0:00:05]} 62. Qxe4+ {[%clk 0:00:03]}  Kxh3 {[%clk 0:00:05]} 63. Qe3+ {[%clk 0:00:03]}  Kg4 {[%clk 0:00:05]} 64. Qe4+ {[%clk 0:00:03]}  Kh5 {[%clk 0:00:05]} 65. Qh1+ {[%clk 0:00:03]}  Kg6 {[%clk 0:00:05]} 66. Qe4+ {[%clk 0:00:04]}  Kf7 {[%clk 0:00:05]} 67. Qb7+ {[%clk 0:00:04]}  Qe7+ {[%clk 0:00:05]} 68. Qxe7+ {[%clk 0:00:03]}  Kxe7 {[%clk 0:00:06]} 0-1


[Site "https://www.chess.com"]

[Event "Titled Tuesday Blitz February 07 Early 2023"]
[White "Bruzon Batista, Lazaro"]
[Black "Vasquez Schroeder, Rodrigo"]
[WhiteFideId "3503739"]
[BlackFideId "3400042"]
[WhiteElo "2611"]
[BlackElo "2524"]
[Result "1-0"]
[Round "09"]
[TimeControl "180+2"]
[Date "2023.02.07"]
[WhiteClock "0:00:24"]
[BlackClock "0:00:14"]

1. e4 {[%clk 0:03:00]}  c5 {[%clk 0:02:59]} 2. Nf3 {[%clk 0:03:00]}  d6 {[%clk 0:02:59]} 3. d4 {[%clk 0:02:58]}  cxd4 {[%clk 0:02:59]} 4. Nxd4 {[%clk 0:02:59]}  Nf6 {[%clk 0:02:59]} 5. Nc3 {[%clk 0:02:59]}  a6 {[%clk 0:02:59]} 6. g3 {[%clk 0:02:59]}  e6 {[%clk 0:02:56]} 7. Bg2 {[%clk 0:02:58]}  Bd7 {[%clk 0:02:56]} 8. g4 {[%clk 0:02:55]}  h6 {[%clk 0:02:55]} 9. h4 {[%clk 0:02:55]}  Nc6 {[%clk 0:02:49]} 10. g5 {[%clk 0:02:51]}  hxg5 {[%clk 0:02:48]} 11. Bxg5 {[%clk 0:02:49]}  Qb6 {[%clk 0:02:41]} 12. Nb3 {[%clk 0:02:48]}  Be7 {[%clk 0:02:37]} 13. Qd2 {[%clk 0:02:41]}  Ne5 {[%clk 0:02:31]} 14. O-O-O {[%clk 0:02:40]}  Qc7 {[%clk 0:02:26]} 15. Rh3 {[%clk 0:02:32]}  b5 {[%clk 0:02:22]} 16. f4 {[%clk 0:02:31]}  Nc4 {[%clk 0:02:22]} 17. Qe1 {[%clk 0:02:31]}  Rc8 {[%clk 0:02:18]} 18. Kb1 {[%clk 0:02:25]}  b4 {[%clk 0:02:12]} 19. Ne2 {[%clk 0:02:24]}  e5 {[%clk 0:02:08]} 20. f5 {[%clk 0:02:23]}  a5 {[%clk 0:02:03]} 21. c3 {[%clk 0:02:11]}  a4 {[%clk 0:01:53]} 22. Nd2 {[%clk 0:02:11]}  b3 {[%clk 0:01:49]} 23. a3 {[%clk 0:02:07]}  Bb5 {[%clk 0:01:41]} 24. Nc1 {[%clk 0:01:55]}  Nh5 {[%clk 0:01:04]} 25. Nxc4 {[%clk 0:01:44]}  Bxc4 {[%clk 0:01:04]} 26. Nd3 {[%clk 0:01:36]}  Bxd3+ {[%clk 0:01:01]} 27. Rdxd3 {[%clk 0:01:34]}  Bf6 {[%clk 0:00:37]} 28. Bf1 {[%clk 0:01:27]}  Nf4 {[%clk 0:00:34]} 29. Bxf4 {[%clk 0:01:26]}  exf4 {[%clk 0:00:35]} 30. Rd5 {[%clk 0:01:26]}  Ke7 {[%clk 0:00:35]} 31. Bb5 {[%clk 0:01:25]}  Ra8 {[%clk 0:00:33]} 32. e5 {[%clk 0:01:07]}  Bxe5 {[%clk 0:00:32]} 33. Rhd3 {[%clk 0:01:07]}  Kf6 {[%clk 0:00:30]} 34. c4 {[%clk 0:01:03]}  Qe7 {[%clk 0:00:26]} 35. c5 {[%clk 0:01:00]}  Rhd8 {[%clk 0:00:22]} 36. Qg1 {[%clk 0:00:53]}  Kxf5 {[%clk 0:00:20]} 37. Bc6 {[%clk 0:00:38]}  Rac8 {[%clk 0:00:20]} 38. Bxa4 {[%clk 0:00:37]}  Rxc5 {[%clk 0:00:19]} 39. Bxb3 {[%clk 0:00:35]}  Rxd5 {[%clk 0:00:19]} 40. Bxd5 {[%clk 0:00:34]}  Qxh4 {[%clk 0:00:19]} 41. Qb6 {[%clk 0:00:29]}  Qe7 {[%clk 0:00:18]} 42. Rb3 {[%clk 0:00:28]}  Kf6 {[%clk 0:00:18]} 43. Qb5 {[%clk 0:00:28]}  Rd7 {[%clk 0:00:18]} 44. Ka2 {[%clk 0:00:28]}  g6 {[%clk 0:00:18]} 45. Qd3 {[%clk 0:00:28]}  Rc7 {[%clk 0:00:19]} 46. a4 {[%clk 0:00:29]}  Ra7 {[%clk 0:00:18]} 47. Qb5 {[%clk 0:00:27]}  Qd7 {[%clk 0:00:18]} 48. Qxd7 {[%clk 0:00:27]}  Rxd7 {[%clk 0:00:18]} 49. a5 {[%clk 0:00:27]}  Ra7 {[%clk 0:00:18]} 50. Ra3 {[%clk 0:00:27]}  Bd4 {[%clk 0:00:18]} 51. b4 {[%clk 0:00:26]}  Ke5 {[%clk 0:00:18]} 52. Bf3 {[%clk 0:00:26]}  f5 {[%clk 0:00:18]} 53. b5 {[%clk 0:00:26]}  d5 {[%clk 0:00:16]} 54. b6 {[%clk 0:00:25]}  Bxb6 {[%clk 0:00:16]} 55. axb6 {[%clk 0:00:25]}  Rb7 {[%clk 0:00:17]} 56. Rb3 {[%clk 0:00:25]}  g5 {[%clk 0:00:17]} 57. Rb5 {[%clk 0:00:25]}  g4 {[%clk 0:00:17]} 58. Bxd5 {[%clk 0:00:25]}  Rb8 {[%clk 0:00:18]} 59. b7 {[%clk 0:00:24]}  f3 {[%clk 0:00:17]} 60. Bxf3+ {[%clk 0:00:24]}  Kf4 {[%clk 0:00:18]} 61. Bc6 {[%clk 0:00:24]}  Kg5 {[%clk 0:00:17]} 62. Ra5 {[%clk 0:00:24]}  g3 {[%clk 0:00:14]} 63. Ra8 {[%clk 0:00:24]} 1-0


[Site "https://www.chess.com"]

[Event "Titled Tuesday Blitz February 07 Early 2023"]
[White "Samunenkov, Ihor"]
[Black "Alex_Sahakyan2006"]
[WhiteFideId "14187086"]
[WhiteElo "2501"]
[BlackElo "2712"]
[Result "0-1"]
[Round "09"]
[TimeControl "180+2"]
[Date "2023.02.07"]
[WhiteClock "0:00:06"]
[BlackClock "0:00:20"]

1. d4 {[%clk 0:03:00]}  Nf6 {[%clk 0:02:58]} 2. Nf3 {[%clk 0:02:59]}  d5 {[%clk 0:02:55]} 3. c4 {[%clk 0:02:59]}  e6 {[%clk 0:02:55]} 4. g3 {[%clk 0:02:59]}  dxc4 {[%clk 0:02:52]} 5. Bg2 {[%clk 0:03:00]}  a6 {[%clk 0:02:52]} 6. O-O {[%clk 0:02:57]}  Nc6 {[%clk 0:02:53]} 7. Nbd2 {[%clk 0:02:58]}  b5 {[%clk 0:02:47]} 8. b3 {[%clk 0:02:58]}  cxb3 {[%clk 0:02:46]} 9. Nxb3 {[%clk 0:02:47]}  Rb8 {[%clk 0:02:38]} 10. Bb2 {[%clk 0:02:34]}  Bb7 {[%clk 0:02:34]} 11. Rc1 {[%clk 0:02:29]}  Be7 {[%clk 0:02:18]} 12. Nc5 {[%clk 0:02:25]}  Bxc5 {[%clk 0:02:17]} 13. Rxc5 {[%clk 0:02:25]}  O-O {[%clk 0:02:16]} 14. Qc1 {[%clk 0:02:14]}  Na5 {[%clk 0:02:01]} 15. Ne5 {[%clk 0:01:54]}  Bxg2 {[%clk 0:02:01]} 16. Kxg2 {[%clk 0:01:55]}  Nd7 {[%clk 0:01:59]} 17. Nxd7 {[%clk 0:01:30]}  Qxd7 {[%clk 0:02:00]} 18. e4 {[%clk 0:01:31]}  Nc4 {[%clk 0:01:58]} 19. Ba1 {[%clk 0:01:29]}  f5 {[%clk 0:01:48]} 20. Qf4 {[%clk 0:00:42]}  fxe4 {[%clk 0:01:09]} 21. Qxc7 {[%clk 0:00:41]}  Qxc7 {[%clk 0:01:08]} 22. Rxc7 {[%clk 0:00:41]}  Rf7 {[%clk 0:01:01]} 23. Rxf7 {[%clk 0:00:38]}  Kxf7 {[%clk 0:01:02]} 24. Re1 {[%clk 0:00:39]}  Nd6 {[%clk 0:01:00]} 25. Bc3 {[%clk 0:00:30]}  b4 {[%clk 0:00:58]} 26. Bd2 {[%clk 0:00:30]}  Ke7 {[%clk 0:00:50]} 27. Bf4 {[%clk 0:00:25]}  Rc8 {[%clk 0:00:48]} 28. Re2 {[%clk 0:00:18]}  a5 {[%clk 0:00:45]} 29. f3 {[%clk 0:00:13]}  exf3+ {[%clk 0:00:43]} 30. Kxf3 {[%clk 0:00:14]}  Rc3+ {[%clk 0:00:43]} 31. Kg4 {[%clk 0:00:13]}  Kd7 {[%clk 0:00:41]} 32. Be5 {[%clk 0:00:13]}  g6 {[%clk 0:00:33]} 33. Kg5 {[%clk 0:00:13]}  Rf3 {[%clk 0:00:25]} 34. Bf4 {[%clk 0:00:06]}  a4 {[%clk 0:00:21]} 35. Kf6 {[%clk 0:00:05]}  Ne8+ {[%clk 0:00:18]} 36. Ke5 {[%clk 0:00:04]}  b3 {[%clk 0:00:17]} 37. axb3 {[%clk 0:00:05]}  axb3 {[%clk 0:00:18]} 38. d5 {[%clk 0:00:05]}  exd5 {[%clk 0:00:18]} 39. Kxd5 {[%clk 0:00:06]}  Nf6+ {[%clk 0:00:17]} 40. Kc4 {[%clk 0:00:06]}  Nh5 {[%clk 0:00:17]} 41. Be3 {[%clk 0:00:05]}  b2 {[%clk 0:00:16]} 42. Rxb2 {[%clk 0:00:02]}  Rxe3 {[%clk 0:00:16]} 43. Rb7+ {[%clk 0:00:02]}  Ke6 {[%clk 0:00:16]} 44. Rxh7 {[%clk 0:00:03]}  Kf5 {[%clk 0:00:16]} 45. Rh6 {[%clk 0:00:02]}  Kg5 {[%clk 0:00:16]} 46. Rh8 {[%clk 0:00:02]}  Re2 {[%clk 0:00:16]} 47. h4+ {[%clk 0:00:03]}  Kf6 {[%clk 0:00:16]} 48. Rf8+ {[%clk 0:00:03]}  Kg7 {[%clk 0:00:16]} 49. Rf3 {[%clk 0:00:04]}  Rg2 {[%clk 0:00:16]} 50. Kd3 {[%clk 0:00:04]}  Rxg3 {[%clk 0:00:16]} 51. Rxg3 {[%clk 0:00:03]}  Nxg3 {[%clk 0:00:17]} 52. Ke3 {[%clk 0:00:04]}  Kh6 {[%clk 0:00:18]} 53. Kf3 {[%clk 0:00:04]}  Nf5 {[%clk 0:00:17]} 54. Kg4 {[%clk 0:00:04]}  Ng7 {[%clk 0:00:18]} 55. Kf4 {[%clk 0:00:04]}  Nh5+ {[%clk 0:00:18]} 56. Kg4 {[%clk 0:00:04]}  Kg7 {[%clk 0:00:18]} 57. Kg5 {[%clk 0:00:05]}  Kf7 {[%clk 0:00:19]} 58. Kg4 {[%clk 0:00:05]}  Kf6 {[%clk 0:00:19]} 59. Kf3 {[%clk 0:00:06]}  Kf5 {[%clk 0:00:20]} 0-1


[Site "https://www.chess.com"]

[Event "Titled Tuesday Blitz February 07 Early 2023"]
[White "Avinash, Ramesh"]
[Black "Sychev, Klementy"]
[WhiteFideId "45018340"]
[BlackFideId "4114060"]
[WhiteElo "2319"]
[BlackElo "2547"]
[Result "1/2-1/2"]
[Round "09"]
[TimeControl "180+2"]
[Date "2023.02.07"]
[WhiteClock "0:02:00"]
[BlackClock "0:00:38"]

1. e4 {[%clk 0:03:00]}  e5 {[%clk 0:03:00]} 2. Nf3 {[%clk 0:03:00]}  Nc6 {[%clk 0:03:00]} 3. Nc3 {[%clk 0:02:56]}  Nf6 {[%clk 0:02:58]} 4. Bb5 {[%clk 0:02:56]}  Nd4 {[%clk 0:02:57]} 5. Nxd4 {[%clk 0:02:54]}  exd4 {[%clk 0:02:57]} 6. e5 {[%clk 0:02:48]}  dxc3 {[%clk 0:02:57]} 7. exf6 {[%clk 0:02:48]}  Qxf6 {[%clk 0:02:58]} 8. dxc3 {[%clk 0:02:45]}  Bc5 {[%clk 0:02:54]} 9. Qe2+ {[%clk 0:02:45]}  Qe6 {[%clk 0:02:52]} 10. Bc4 {[%clk 0:02:39]}  Qxe2+ {[%clk 0:02:47]} 11. Kxe2 {[%clk 0:02:39]}  c6 {[%clk 0:02:40]} 12. Be3 {[%clk 0:02:39]}  Bxe3 {[%clk 0:02:39]} 13. Kxe3 {[%clk 0:02:39]}  d5 {[%clk 0:02:39]} 14. Bd3 {[%clk 0:02:38]}  O-O {[%clk 0:02:39]} 15. Rae1 {[%clk 0:02:36]}  Re8+ {[%clk 0:02:36]} 16. Kd2 {[%clk 0:02:36]}  Bd7 {[%clk 0:02:36]} 17. Rxe8+ {[%clk 0:02:36]}  Rxe8 {[%clk 0:02:37]} 18. Re1 {[%clk 0:02:36]}  Rxe1 {[%clk 0:02:37]} 19. Kxe1 {[%clk 0:02:37]}  c5 {[%clk 0:02:37]} 20. c4 {[%clk 0:02:33]}  d4 {[%clk 0:02:31]} 21. Kd2 {[%clk 0:02:33]}  Bc6 {[%clk 0:02:31]} 22. g3 {[%clk 0:02:30]}  g6 {[%clk 0:02:30]} 23. c3 {[%clk 0:02:30]}  dxc3+ {[%clk 0:02:30]} 24. Kxc3 {[%clk 0:02:30]}  Kf8 {[%clk 0:02:27]} 25. a3 {[%clk 0:02:27]}  Ke7 {[%clk 0:02:25]} 26. f4 {[%clk 0:02:27]}  h6 {[%clk 0:02:21]} 27. b4 {[%clk 0:02:24]}  b6 {[%clk 0:02:20]} 28. Kd2 {[%clk 0:02:18]}  Kd6 {[%clk 0:02:20]} 29. Ke3 {[%clk 0:02:16]}  Be8 {[%clk 0:02:00]} 30. h4 {[%clk 0:02:16]}  f6 {[%clk 0:01:56]} 31. Bf1 {[%clk 0:02:14]}  Bf7 {[%clk 0:01:55]} 32. Bd3 {[%clk 0:02:13]}  g5 {[%clk 0:01:38]} 33. Bf1 {[%clk 0:02:09]}  Be6 {[%clk 0:01:37]} 34. Bd3 {[%clk 0:02:06]}  a6 {[%clk 0:01:35]} 35. Bf1 {[%clk 0:02:05]}  Bg8 {[%clk 0:01:26]} 36. Bd3 {[%clk 0:02:05]}  Bf7 {[%clk 0:01:26]} 37. Bf1 {[%clk 0:02:03]}  Bg6 {[%clk 0:01:22]} 38. Be2 {[%clk 0:02:03]}  Bf5 {[%clk 0:01:21]} 39. Bf1 {[%clk 0:02:02]}  Kc7 {[%clk 0:00:59]} 40. Be2 {[%clk 0:02:02]}  Kd6 {[%clk 0:00:53]} 41. Bf1 {[%clk 0:02:02]}  Bb1 {[%clk 0:00:52]} 42. Be2 {[%clk 0:02:00]}  Bf5 {[%clk 0:00:38]} 1/2-1/2


[Site "https://www.chess.com"]

[Event "Titled Tuesday Blitz February 07 Early 2023"]
[White "Kosakowski, Jakub"]
[Black "Timofeev, Artyom"]
[WhiteFideId "1185080"]
[BlackFideId "4140419"]
[WhiteElo "2485"]
[BlackElo "2567"]
[Result "0-1"]
[Round "09"]
[TimeControl "180+2"]
[Date "2023.02.07"]
[WhiteClock "0:00:09"]
[BlackClock "0:00:33"]

1. e4 {[%clk 0:03:00]}  d6 {[%clk 0:02:58]} 2. d4 {[%clk 0:03:00]}  Nf6 {[%clk 0:02:58]} 3. Nc3 {[%clk 0:03:01]}  g6 {[%clk 0:02:58]} 4. Nf3 {[%clk 0:02:50]}  Bg7 {[%clk 0:02:57]} 5. Be2 {[%clk 0:02:50]}  O-O {[%clk 0:02:56]} 6. O-O {[%clk 0:02:50]}  Nc6 {[%clk 0:02:56]} 7. d5 {[%clk 0:02:50]}  Nb8 {[%clk 0:02:56]} 8. Be3 {[%clk 0:02:50]}  c6 {[%clk 0:02:55]} 9. a4 {[%clk 0:02:49]}  a5 {[%clk 0:02:44]} 10. Nd2 {[%clk 0:02:49]}  Nbd7 {[%clk 0:02:39]} 11. Nc4 {[%clk 0:02:49]}  Qc7 {[%clk 0:02:38]} 12. h3 {[%clk 0:02:39]}  Rb8 {[%clk 0:02:38]} 13. Ba7 {[%clk 0:02:38]}  Ra8 {[%clk 0:02:37]} 14. Be3 {[%clk 0:02:38]}  Nc5 {[%clk 0:02:16]} 15. e5 {[%clk 0:02:17]}  Nxd5 {[%clk 0:02:12]} 16. Nxd5 {[%clk 0:02:17]}  cxd5 {[%clk 0:02:11]} 17. exd6 {[%clk 0:02:17]}  Qc6 {[%clk 0:01:55]} 18. dxe7 {[%clk 0:02:12]}  Re8 {[%clk 0:01:54]} 19. Nd2 {[%clk 0:02:02]}  Rxe7 {[%clk 0:01:50]} 20. Bb5 {[%clk 0:02:02]}  Qc7 {[%clk 0:01:50]} 21. Nf3 {[%clk 0:02:01]}  Be6 {[%clk 0:01:45]} 22. Bd4 {[%clk 0:02:00]}  Ne4 {[%clk 0:01:37]} 23. Re1 {[%clk 0:02:01]}  Rc8 {[%clk 0:01:27]} 24. c3 {[%clk 0:02:00]}  h6 {[%clk 0:01:23]} 25. Bxg7 {[%clk 0:01:49]}  Kxg7 {[%clk 0:01:23]} 26. Qd4+ {[%clk 0:01:50]}  Kh7 {[%clk 0:01:22]} 27. Rad1 {[%clk 0:01:50]}  b6 {[%clk 0:01:17]} 28. Nd2 {[%clk 0:01:40]}  Nd6 {[%clk 0:01:09]} 29. Bd3 {[%clk 0:01:34]}  Rce8 {[%clk 0:01:05]} 30. Nf3 {[%clk 0:01:30]}  Nc4 {[%clk 0:00:57]} 31. Re2 {[%clk 0:01:20]}  Bc8 {[%clk 0:00:40]} 32. Rxe7 {[%clk 0:01:08]}  Rxe7 {[%clk 0:00:40]} 33. Rb1 {[%clk 0:00:18]}  Bb7 {[%clk 0:00:36]} 34. b3 {[%clk 0:00:18]}  Ne5 {[%clk 0:00:35]} 35. Nxe5 {[%clk 0:00:18]}  Rxe5 {[%clk 0:00:35]} 36. Rd1 {[%clk 0:00:15]}  Re6 {[%clk 0:00:35]} 37. h4 {[%clk 0:00:14]}  Qe5 {[%clk 0:00:33]} 38. Qxe5 {[%clk 0:00:13]}  Rxe5 {[%clk 0:00:33]} 39. Kf1 {[%clk 0:00:13]}  Kg7 {[%clk 0:00:33]} 40. Re1 {[%clk 0:00:13]}  Kf6 {[%clk 0:00:33]} 41. f4 {[%clk 0:00:12]}  Re7 {[%clk 0:00:33]} 42. g4 {[%clk 0:00:11]}  Rc7 {[%clk 0:00:33]} 43. g5+ {[%clk 0:00:10]}  hxg5 {[%clk 0:00:33]} 44. hxg5+ {[%clk 0:00:11]}  Kg7 {[%clk 0:00:34]} 45. c4 {[%clk 0:00:12]}  dxc4 {[%clk 0:00:34]} 46. Bxc4 {[%clk 0:00:13]}  Bc6 {[%clk 0:00:34]} 47. Kf2 {[%clk 0:00:13]}  Bxa4 {[%clk 0:00:34]} 48. Re8 {[%clk 0:00:09]}  Bxe8 {[%clk 0:00:33]} 0-1


[Site "https://www.chess.com"]